[Event "Titled Tuesday Blitz April 18 Late 2023"]
[White "Lewicki, Miroslaw"]
[Black "Gardezi, Arsal"]
[WhiteFideId "1113380"]
[BlackFideId "30949521"]
[WhiteElo "2212"]
[BlackElo "1906"]
[Result "1-0"]
[Round "01"]
[TimeControl "180+2"]
[Date "2023.04.18"]
[WhiteClock "0:00:10"]
[BlackClock "0:00:08"]

1. g3 {[%clk 0:03:00]}  g6 {[%clk 0:02:49]} 2. Bg2 {[%clk 0:03:00]}  Bg7 {[%clk 0:02:37]} 3. Nf3 {[%clk 0:03:01]}  e6 {[%clk 0:02:29]} 4. O-O {[%clk 0:02:59]}  Ne7 {[%clk 0:02:29]} 5. d4 {[%clk 0:02:58]}  d5 {[%clk 0:02:27]} 6. b3 {[%clk 0:02:58]}  O-O {[%clk 0:02:27]} 7. Bb2 {[%clk 0:02:58]}  c5 {[%clk 0:02:26]} 8. e3 {[%clk 0:02:49]}  Nbc6 {[%clk 0:02:20]} 9. Nbd2 {[%clk 0:02:45]}  cxd4 {[%clk 0:02:05]} 10. exd4 {[%clk 0:02:44]}  Bd7 {[%clk 0:02:06]} 11. Re1 {[%clk 0:02:43]}  Rc8 {[%clk 0:02:06]} 12. Ne5 {[%clk 0:02:42]}  Nxe5 {[%clk 0:02:06]} 13. dxe5 {[%clk 0:02:43]}  Nc6 {[%clk 0:02:06]} 14. Nf3 {[%clk 0:02:41]}  Qc7 {[%clk 0:02:05]} 15. h4 {[%clk 0:02:31]}  Nb4 {[%clk 0:01:58]} 16. Re2 {[%clk 0:02:30]}  Bb5 {[%clk 0:01:58]} 17. Rd2 {[%clk 0:02:30]}  Bh6 {[%clk 0:01:52]} 18. Ng5 {[%clk 0:02:27]}  Bg7 {[%clk 0:01:52]} 19. a3 {[%clk 0:02:16]}  Nc6 {[%clk 0:01:46]} 20. f4 {[%clk 0:02:16]}  a5 {[%clk 0:01:34]} 21. Kh2 {[%clk 0:02:09]}  Ne7 {[%clk 0:01:26]} 22. Bd4 {[%clk 0:01:57]}  Nf5 {[%clk 0:01:23]} 23. Bf2 {[%clk 0:01:57]}  h5 {[%clk 0:01:05]} 24. Bf3 {[%clk 0:01:48]}  Qc3 {[%clk 0:00:54]} 25. Rc1 {[%clk 0:01:32]}  a4 {[%clk 0:00:33]} 26. bxa4 {[%clk 0:01:27]}  Bxa4 {[%clk 0:00:33]} 27. Rd3 {[%clk 0:01:25]}  Qc7 {[%clk 0:00:31]} 28. Qe2 {[%clk 0:01:03]}  Bb5 {[%clk 0:00:30]} 29. Rb1 {[%clk 0:00:56]}  Bxd3 {[%clk 0:00:29]} 30. cxd3 {[%clk 0:00:56]}  Qc2 {[%clk 0:00:28]} 31. Qf1 {[%clk 0:00:57]}  Rfd8 {[%clk 0:00:17]} 32. Rxb7 {[%clk 0:00:53]}  Bf8 {[%clk 0:00:15]} 33. Nxf7 {[%clk 0:00:44]}  Bc5 {[%clk 0:00:15]} 34. g4 {[%clk 0:00:17]}  Bxf2 {[%clk 0:00:13]} 35. gxf5 {[%clk 0:00:16]}  Be3+ {[%clk 0:00:09]} 36. Qg2 {[%clk 0:00:14]}  Qxg2+ {[%clk 0:00:09]} 37. Kxg2 {[%clk 0:00:13]}  gxf5 {[%clk 0:00:09]} 38. Nxd8 {[%clk 0:00:13]}  Rxd8 {[%clk 0:00:09]} 39. Bxh5 {[%clk 0:00:14]}  Rc8 {[%clk 0:00:09]} 40. Bf7+ {[%clk 0:00:14]}  Kf8 {[%clk 0:00:10]} 41. Bxe6 {[%clk 0:00:15]}  Rc2+ {[%clk 0:00:09]} 42. Kf3 {[%clk 0:00:15]}  Bc1 {[%clk 0:00:10]} 43. Bxf5 {[%clk 0:00:11]}  Rh2 {[%clk 0:00:09]} 44. Be6 {[%clk 0:00:11]}  Rxh4 {[%clk 0:00:09]} 45. f5 {[%clk 0:00:11]}  Ke8 {[%clk 0:00:09]} 46. f6 {[%clk 0:00:10]}  Rf4+ {[%clk 0:00:08]} 47. Ke2 {[%clk 0:00:10]} 1-0


[Site "https://www.chess.com"]

[Event "Titled Tuesday Blitz April 18 Late 2023"]
[White "Volkmann, Andre Jordi"]
[Black "Gubajdullin, Alexei"]
[WhiteFideId "2154463"]
[BlackFideId "4141202"]
[WhiteElo "1999"]
[BlackElo "2279"]
[Result "0-1"]
[Round "01"]
[TimeControl "180+2"]
[Date "2023.04.18"]
[WhiteClock "0:00:10"]
[BlackClock "0:00:40"]

1. d4 {[%clk 0:02:58]}  Nf6 {[%clk 0:02:59]} 2. c4 {[%clk 0:02:58]}  g6 {[%clk 0:02:59]} 3. f3 {[%clk 0:02:57]}  Bg7 {[%clk 0:02:59]} 4. e4 {[%clk 0:02:58]}  d6 {[%clk 0:03:00]} 5. Nc3 {[%clk 0:02:58]}  O-O {[%clk 0:03:01]} 6. Be3 {[%clk 0:02:59]}  Nc6 {[%clk 0:02:58]} 7. Qd2 {[%clk 0:02:58]}  a6 {[%clk 0:02:58]} 8. Nge2 {[%clk 0:02:55]}  Rb8 {[%clk 0:02:58]} 9. g4 {[%clk 0:02:51]}  h5 {[%clk 0:02:57]} 10. g5 {[%clk 0:02:47]}  Nd7 {[%clk 0:02:55]} 11. Nc1 {[%clk 0:02:39]}  e5 {[%clk 0:02:54]} 12. d5 {[%clk 0:02:38]}  Nd4 {[%clk 0:02:54]} 13. Be2 {[%clk 0:02:34]}  c5 {[%clk 0:02:53]} 14. a4 {[%clk 0:02:25]}  b5 {[%clk 0:02:43]} 15. axb5 {[%clk 0:02:23]}  axb5 {[%clk 0:02:43]} 16. Nxb5 {[%clk 0:02:24]}  Nb6 {[%clk 0:02:35]} 17. Bxd4 {[%clk 0:02:12]}  exd4 {[%clk 0:02:31]} 18. h4 {[%clk 0:02:13]}  Be5 {[%clk 0:02:18]} 19. b3 {[%clk 0:02:06]}  Bd7 {[%clk 0:02:15]} 20. Nd3 {[%clk 0:01:58]}  Bxb5 {[%clk 0:02:11]} 21. cxb5 {[%clk 0:01:59]}  Bg3+ {[%clk 0:02:06]} 22. Kd1 {[%clk 0:01:59]}  c4 {[%clk 0:02:05]} 23. Nb4 {[%clk 0:01:54]}  d3 {[%clk 0:02:04]} 24. Nc6 {[%clk 0:01:50]}  dxe2+ {[%clk 0:02:02]} 25. Kxe2 {[%clk 0:01:50]}  Qe8 {[%clk 0:01:53]} 26. Nxb8 {[%clk 0:01:50]}  Qxb8 {[%clk 0:01:51]} 27. b4 {[%clk 0:01:42]}  c3 {[%clk 0:01:48]} 28. Qxc3 {[%clk 0:01:35]}  Be5 {[%clk 0:01:47]} 29. Qd3 {[%clk 0:01:34]}  Bxa1 {[%clk 0:01:46]} 30. Rxa1 {[%clk 0:01:35]}  Rc8 {[%clk 0:01:45]} 31. Ra6 {[%clk 0:01:34]}  Nc4 {[%clk 0:01:44]} 32. Rc6 {[%clk 0:01:29]}  Ne5 {[%clk 0:01:41]} 33. Rxc8+ {[%clk 0:01:25]}  Qxc8 {[%clk 0:01:41]} 34. Qb3 {[%clk 0:01:21]}  Qh3 {[%clk 0:01:20]} 35. Qe3 {[%clk 0:01:11]}  Nc4 {[%clk 0:01:14]} 36. Qf2 {[%clk 0:01:08]}  Qd7 {[%clk 0:01:08]} 37. b6 {[%clk 0:01:05]}  Qb5 {[%clk 0:01:07]} 38. Ke1 {[%clk 0:00:55]}  Qxb4+ {[%clk 0:01:05]} 39. Kf1 {[%clk 0:00:56]}  Nxb6 {[%clk 0:01:04]} 40. Kg2 {[%clk 0:00:51]}  Nc4 {[%clk 0:01:03]} 41. Qa7 {[%clk 0:00:48]}  Qb2+ {[%clk 0:01:01]} 42. Kh3 {[%clk 0:00:45]}  Qc3 {[%clk 0:00:59]} 43. Qb8+ {[%clk 0:00:44]}  Kg7 {[%clk 0:00:59]} 44. Kg2 {[%clk 0:00:44]}  Ne5 {[%clk 0:00:51]} 45. Qxd6 {[%clk 0:00:38]}  Qxf3+ {[%clk 0:00:50]} 46. Kg1 {[%clk 0:00:39]}  Ng4 {[%clk 0:00:50]} 47. Qc7 {[%clk 0:00:16]}  Qf2+ {[%clk 0:00:44]} 48. Kh1 {[%clk 0:00:16]}  Ne3 {[%clk 0:00:42]} 49. Qe5+ {[%clk 0:00:14]}  Kh7 {[%clk 0:00:41]} 50. Qh2 {[%clk 0:00:12]}  Qf3+ {[%clk 0:00:41]} 51. Kg1 {[%clk 0:00:10]}  Qf1# {[%clk 0:00:40]} 0-1


[Site "https://www.chess.com"]

[Event "Titled Tuesday Blitz April 18 Late 2023"]
[White "Blomqvist, Erik"]
[Black "Cigan, Jason"]
[WhiteFideId "1709437"]
[BlackFideId "2064022"]
[WhiteElo "2436"]
[BlackElo "2000"]
[Result "0-1"]
[Round "01"]
[TimeControl "180+2"]
[Date "2023.04.18"]
[WhiteClock "0:00:02"]
[BlackClock "0:00:04"]

1. Nf3 {[%clk 0:02:56]}  d5 {[%clk 0:02:59]} 2. d4 {[%clk 0:02:55]}  Nf6 {[%clk 0:02:59]} 3. Bf4 {[%clk 0:02:56]}  c5 {[%clk 0:02:59]} 4. e3 {[%clk 0:02:56]}  Nc6 {[%clk 0:02:59]} 5. Nbd2 {[%clk 0:02:56]}  Qb6 {[%clk 0:02:59]} 6. dxc5 {[%clk 0:02:54]}  Qxb2 {[%clk 0:02:59]} 7. Rb1 {[%clk 0:02:53]}  Qc3 {[%clk 0:02:58]} 8. Bb5 {[%clk 0:02:54]}  g6 {[%clk 0:02:57]} 9. e4 {[%clk 0:02:51]}  Bg7 {[%clk 0:02:53]} 10. Be5 {[%clk 0:02:47]}  Qxc5 {[%clk 0:02:49]} 11. Bd4 {[%clk 0:02:24]}  Qa3 {[%clk 0:02:30]} 12. exd5 {[%clk 0:02:22]}  a6 {[%clk 0:02:17]} 13. Nc4 {[%clk 0:02:06]}  Qxa2 {[%clk 0:01:45]} 14. Ra1 {[%clk 0:01:30]}  axb5 {[%clk 0:01:42]} 15. Nb6 {[%clk 0:01:26]}  Nxd4 {[%clk 0:01:35]} 16. Rxa2 {[%clk 0:01:05]}  Nxf3+ {[%clk 0:01:33]} 17. gxf3 {[%clk 0:01:01]}  Rxa2 {[%clk 0:01:34]} 18. Nxc8 {[%clk 0:01:01]}  Nxd5 {[%clk 0:01:17]} 19. Qxd5 {[%clk 0:00:54]}  Ra1+ {[%clk 0:01:16]} 20. Ke2 {[%clk 0:00:54]}  Rxh1 {[%clk 0:01:16]} 21. Qxb5+ {[%clk 0:00:50]}  Kf8 {[%clk 0:01:12]} 22. Qxb7 {[%clk 0:00:33]}  Bf6 {[%clk 0:01:12]} 23. f4 {[%clk 0:00:28]}  Rxh2 {[%clk 0:01:01]} 24. Nb6 {[%clk 0:00:25]}  Bh4 {[%clk 0:00:44]} 25. Nd5 {[%clk 0:00:09]}  Rxf2+ {[%clk 0:00:39]} 26. Kd3 {[%clk 0:00:10]}  Kg7 {[%clk 0:00:27]} 27. Qb2+ {[%clk 0:00:08]}  Bf6 {[%clk 0:00:23]} 28. Qb6 {[%clk 0:00:09]}  Rf3+ {[%clk 0:00:18]} 29. Ke4 {[%clk 0:00:09]}  Rh3 {[%clk 0:00:17]} 30. c4 {[%clk 0:00:09]}  Rc8 {[%clk 0:00:14]} 31. Qa6 {[%clk 0:00:08]}  Rb8 {[%clk 0:00:09]} 32. Qa7 {[%clk 0:00:06]}  Rbb3 {[%clk 0:00:08]} 33. c5 {[%clk 0:00:05]}  Rbd3 {[%clk 0:00:06]} 34. c6 {[%clk 0:00:05]}  Bd4 {[%clk 0:00:04]} 35. Qa2 {[%clk 0:00:02]}  f5# {[%clk 0:00:04]} 0-1


[Site "https://www.chess.com"]

[Event "Titled Tuesday Blitz April 18 Late 2023"]
[White "Broca Jimenez, Fernando"]
[Black "MKlose11"]
[WhiteFideId "5104742"]
[WhiteElo "2062"]
[BlackElo "2574"]
[Result "0-1"]
[Round "01"]
[TimeControl "180+2"]
[Date "2023.04.18"]
[WhiteClock "0:00:05"]
[BlackClock "0:00:18"]

1. e4 {[%clk 0:03:00]}  e6 {[%clk 0:02:59]} 2. d4 {[%clk 0:02:56]}  d5 {[%clk 0:02:56]} 3. exd5 {[%clk 0:02:57]}  exd5 {[%clk 0:02:55]} 4. Bd3 {[%clk 0:02:55]}  Nf6 {[%clk 0:02:39]} 5. Nf3 {[%clk 0:02:55]}  c5 {[%clk 0:02:32]} 6. c3 {[%clk 0:02:43]}  Nc6 {[%clk 0:02:31]} 7. O-O {[%clk 0:02:39]}  Be7 {[%clk 0:02:32]} 8. Bg5 {[%clk 0:02:21]}  O-O {[%clk 0:02:27]} 9. Re1 {[%clk 0:02:20]}  Bg4 {[%clk 0:02:26]} 10. dxc5 {[%clk 0:02:20]}  Bxc5 {[%clk 0:02:24]} 11. Nbd2 {[%clk 0:02:18]}  Qb6 {[%clk 0:02:17]} 12. Bh4 {[%clk 0:02:11]}  Rae8 {[%clk 0:02:12]} 13. Qc2 {[%clk 0:02:10]}  h6 {[%clk 0:02:11]} 14. Nb3 {[%clk 0:02:02]}  Bxf3 {[%clk 0:02:03]} 15. gxf3 {[%clk 0:01:51]}  Ne5 {[%clk 0:01:58]} 16. Be2 {[%clk 0:01:39]}  Nh5 {[%clk 0:01:56]} 17. Nxc5 {[%clk 0:01:38]}  Qxc5 {[%clk 0:01:56]} 18. Bg3 {[%clk 0:01:30]}  f5 {[%clk 0:01:53]} 19. Bxe5 {[%clk 0:01:19]}  Rxe5 {[%clk 0:01:52]} 20. f4 {[%clk 0:01:17]}  Nxf4 {[%clk 0:01:51]} 21. Bf3 {[%clk 0:01:17]}  Rfe8 {[%clk 0:01:44]} 22. Rxe5 {[%clk 0:01:15]}  Rxe5 {[%clk 0:01:45]} 23. Rd1 {[%clk 0:01:14]}  Qd6 {[%clk 0:01:26]} 24. Qd2 {[%clk 0:01:11]}  Qg6+ {[%clk 0:01:26]} 25. Kh1 {[%clk 0:01:10]}  Nh3 {[%clk 0:00:43]} 26. Bxd5+ {[%clk 0:01:02]}  Kh7 {[%clk 0:00:43]} 27. Bg2 {[%clk 0:01:02]}  Qh5 {[%clk 0:00:38]} 28. Re1 {[%clk 0:00:36]}  Rxe1+ {[%clk 0:00:35]} 29. Qxe1 {[%clk 0:00:37]}  Qh4 {[%clk 0:00:31]} 30. Bxh3 {[%clk 0:00:19]}  Qxh3 {[%clk 0:00:32]} 31. Qb1 {[%clk 0:00:13]}  b6 {[%clk 0:00:28]} 32. a4 {[%clk 0:00:13]}  Kg6 {[%clk 0:00:25]} 33. Kg1 {[%clk 0:00:13]}  Qg4+ {[%clk 0:00:24]} 34. Kf1 {[%clk 0:00:13]}  Qxa4 {[%clk 0:00:24]} 35. b4 {[%clk 0:00:13]}  Qb5+ {[%clk 0:00:22]} 36. Kg1 {[%clk 0:00:12]}  Qc4 {[%clk 0:00:22]} 37. Qe1 {[%clk 0:00:11]}  a5 {[%clk 0:00:20]} 38. bxa5 {[%clk 0:00:08]}  bxa5 {[%clk 0:00:21]} 39. Kg2 {[%clk 0:00:06]}  Qe4+ {[%clk 0:00:19]} 40. Kf1 {[%clk 0:00:04]}  Qxe1+ {[%clk 0:00:17]} 41. Kxe1 {[%clk 0:00:05]}  Kf6 {[%clk 0:00:18]} 42. Ke2 {[%clk 0:00:05]}  Ke5 {[%clk 0:00:18]} 43. Kd3 {[%clk 0:00:06]}  Kd5 {[%clk 0:00:19]} 44. c4+ {[%clk 0:00:06]}  Kc5 {[%clk 0:00:19]} 45. Kc3 {[%clk 0:00:06]}  g5 {[%clk 0:00:19]} 46. h3 {[%clk 0:00:06]}  a4 {[%clk 0:00:18]} 47. f3 {[%clk 0:00:05]}  f4 {[%clk 0:00:18]} 0-1


[Site "https://www.chess.com"]

[Event "Titled Tuesday Blitz April 18 Late 2023"]
[White "Melikyan, Gnel"]
[Black "ChessSG1"]
[WhiteFideId "54109990"]
[WhiteElo "2138"]
[BlackElo "2195"]
[Result "1-0"]
[Round "01"]
[TimeControl "180+2"]
[Date "2023.04.18"]
[WhiteClock "0:00:15"]
[BlackClock "0:00:22"]

1. d4 {[%clk 0:02:58]}  Nf6 {[%clk 0:02:57]} 2. c4 {[%clk 0:02:57]}  e6 {[%clk 0:02:57]} 3. Nc3 {[%clk 0:02:52]}  c5 {[%clk 0:02:57]} 4. Nf3 {[%clk 0:02:49]}  cxd4 {[%clk 0:02:47]} 5. Nxd4 {[%clk 0:02:48]}  Nc6 {[%clk 0:02:47]} 6. g3 {[%clk 0:02:41]}  Qb6 {[%clk 0:02:30]} 7. Nc2 {[%clk 0:02:27]}  Bc5 {[%clk 0:02:21]} 8. e3 {[%clk 0:02:26]}  O-O {[%clk 0:02:10]} 9. a3 {[%clk 0:02:25]}  Be7 {[%clk 0:02:08]} 10. b4 {[%clk 0:02:22]}  d6 {[%clk 0:02:06]} 11. Bb2 {[%clk 0:02:08]}  a6 {[%clk 0:02:05]} 12. Bg2 {[%clk 0:02:07]}  Ne5 {[%clk 0:02:05]} 13. Qe2 {[%clk 0:01:25]}  Qc7 {[%clk 0:02:04]} 14. Bf1 {[%clk 0:01:26]}  b5 {[%clk 0:02:01]} 15. cxb5 {[%clk 0:01:23]}  Bb7 {[%clk 0:02:01]} 16. e4 {[%clk 0:01:20]}  axb5 {[%clk 0:01:52]} 17. f4 {[%clk 0:01:11]}  Nc4 {[%clk 0:01:32]} 18. Nxb5 {[%clk 0:01:09]}  Qb6 {[%clk 0:01:32]} 19. Qxc4 {[%clk 0:01:07]}  Bxe4 {[%clk 0:01:24]} 20. Bxf6 {[%clk 0:00:43]}  Bxf6 {[%clk 0:01:19]} 21. Qxe4 {[%clk 0:00:42]}  Bxa1 {[%clk 0:01:15]} 22. Bd3 {[%clk 0:00:42]}  f5 {[%clk 0:01:07]} 23. Qxe6+ {[%clk 0:00:41]}  Kh8 {[%clk 0:01:07]} 24. Nxd6 {[%clk 0:00:04]}  Rfe8 {[%clk 0:00:48]} 25. Qxe8+ {[%clk 0:00:04]}  Rxe8+ {[%clk 0:00:48]} 26. Nxe8 {[%clk 0:00:05]}  Qe6+ {[%clk 0:00:48]} 27. Kd2 {[%clk 0:00:05]}  Bb2 {[%clk 0:00:40]} 28. Re1 {[%clk 0:00:05]}  Qc8 {[%clk 0:00:37]} 29. Kd1 {[%clk 0:00:05]}  h6 {[%clk 0:00:34]} 30. Nd6 {[%clk 0:00:06]}  Qd7 {[%clk 0:00:29]} 31. Re8+ {[%clk 0:00:03]}  Kh7 {[%clk 0:00:29]} 32. Bxf5+ {[%clk 0:00:03]}  Qxf5 {[%clk 0:00:20]} 33. Nxf5 {[%clk 0:00:04]}  Kg6 {[%clk 0:00:21]} 34. Re6+ {[%clk 0:00:04]}  Kxf5 {[%clk 0:00:20]} 35. Re2 {[%clk 0:00:05]}  Bc3 {[%clk 0:00:20]} 36. Ne3+ {[%clk 0:00:06]}  Kf6 {[%clk 0:00:20]} 37. Kc2 {[%clk 0:00:07]}  h5 {[%clk 0:00:20]} 38. Kd3 {[%clk 0:00:07]}  h4 {[%clk 0:00:20]} 39. Nd5+ {[%clk 0:00:08]}  Kf5 {[%clk 0:00:20]} 40. Nxc3 {[%clk 0:00:09]}  hxg3 {[%clk 0:00:21]} 41. hxg3 {[%clk 0:00:10]}  g5 {[%clk 0:00:21]} 42. g4+ {[%clk 0:00:11]}  Kxg4 {[%clk 0:00:21]} 43. b5 {[%clk 0:00:12]}  gxf4 {[%clk 0:00:21]} 44. b6 {[%clk 0:00:13]}  f3 {[%clk 0:00:22]} 45. Ne4 {[%clk 0:00:13]}  fxe2 {[%clk 0:00:22]} 46. Kxe2 {[%clk 0:00:14]}  Kf4 {[%clk 0:00:22]} 47. Kd3 {[%clk 0:00:15]} 1-0


[Site "https://www.chess.com"]

[Event "Titled Tuesday Blitz April 18 Late 2023"]
[White "Zarnicki, Pablo"]
[Black "Dubreuil, Julien"]
[WhiteFideId "100137"]
[BlackFideId "621285"]
[WhiteElo "2468"]
[BlackElo "2182"]
[Result "0-1"]
[Round "01"]
[TimeControl "180+2"]
[Date "2023.04.18"]
[WhiteClock "0:00:07"]
[BlackClock "0:00:17"]

1. e4 {[%clk 0:02:59]}  e5 {[%clk 0:02:43]} 2. Nf3 {[%clk 0:02:58]}  Nc6 {[%clk 0:02:44]} 3. Nc3 {[%clk 0:02:57]}  Nf6 {[%clk 0:02:43]} 4. a3 {[%clk 0:02:57]}  d5 {[%clk 0:02:37]} 5. Bb5 {[%clk 0:02:53]}  Nxe4 {[%clk 0:02:26]} 6. Qe2 {[%clk 0:02:47]}  Nxc3 {[%clk 0:02:19]} 7. Qxe5+ {[%clk 0:02:40]}  Qe7 {[%clk 0:02:16]} 8. Qxe7+ {[%clk 0:02:37]}  Bxe7 {[%clk 0:02:16]} 9. dxc3 {[%clk 0:02:36]}  O-O {[%clk 0:02:14]} 10. Bf4 {[%clk 0:02:32]}  Bd8 {[%clk 0:02:00]} 11. O-O-O {[%clk 0:02:31]}  Be6 {[%clk 0:02:00]} 12. Ng5 {[%clk 0:02:30]}  a6 {[%clk 0:01:49]} 13. Bd3 {[%clk 0:02:19]}  h6 {[%clk 0:01:46]} 14. Nxe6 {[%clk 0:02:05]}  fxe6 {[%clk 0:01:47]} 15. Bg3 {[%clk 0:02:04]}  Bg5+ {[%clk 0:01:43]} 16. Kb1 {[%clk 0:01:57]}  Bf4 {[%clk 0:01:43]} 17. f3 {[%clk 0:01:49]}  Bxg3 {[%clk 0:01:38]} 18. hxg3 {[%clk 0:01:48]}  e5 {[%clk 0:01:34]} 19. c4 {[%clk 0:01:43]}  d4 {[%clk 0:01:33]} 20. Rhe1 {[%clk 0:01:41]}  Rae8 {[%clk 0:01:32]} 21. Be4 {[%clk 0:01:40]}  Nd8 {[%clk 0:01:30]} 22. Re2 {[%clk 0:01:22]}  c6 {[%clk 0:01:29]} 23. Rde1 {[%clk 0:01:21]}  Rf6 {[%clk 0:01:17]} 24. Bd3 {[%clk 0:01:11]}  Nf7 {[%clk 0:01:16]} 25. f4 {[%clk 0:01:11]}  Rfe6 {[%clk 0:00:34]} 26. c5 {[%clk 0:01:10]}  R6e7 {[%clk 0:00:35]} 27. Bc4 {[%clk 0:01:08]}  Kf8 {[%clk 0:00:35]} 28. Bxf7 {[%clk 0:01:06]}  Kxf7 {[%clk 0:00:35]} 29. fxe5 {[%clk 0:01:06]}  Ke6 {[%clk 0:00:35]} 30. c4 {[%clk 0:00:51]}  dxc3 {[%clk 0:00:34]} 31. b4 {[%clk 0:00:51]}  Kd5 {[%clk 0:00:33]} 32. Rd1+ {[%clk 0:00:50]}  Kc4 {[%clk 0:00:30]} 33. Rde1 {[%clk 0:00:35]}  Kb3 {[%clk 0:00:31]} 34. Re3 {[%clk 0:00:32]}  a5 {[%clk 0:00:27]} 35. bxa5 {[%clk 0:00:29]}  Kxa3 {[%clk 0:00:25]} 36. Kc2 {[%clk 0:00:24]}  Kb4 {[%clk 0:00:25]} 37. Re4+ {[%clk 0:00:17]}  Kxc5 {[%clk 0:00:24]} 38. Kxc3 {[%clk 0:00:17]}  Kd5 {[%clk 0:00:23]} 39. Rd4+ {[%clk 0:00:18]}  Kc5 {[%clk 0:00:23]} 40. Rc4+ {[%clk 0:00:16]}  Kb5 {[%clk 0:00:18]} 41. Rb1+ {[%clk 0:00:13]}  Kxa5 {[%clk 0:00:17]} 42. Rc5+ {[%clk 0:00:13]}  Ka6 {[%clk 0:00:16]} 43. Rc4 {[%clk 0:00:11]}  Rxe5 {[%clk 0:00:15]} 44. Ra4+ {[%clk 0:00:07]}  Ra5 {[%clk 0:00:15]} 45. Rab4 {[%clk 0:00:07]}  b5 {[%clk 0:00:15]} 46. Kd4 {[%clk 0:00:07]}  Kb6 {[%clk 0:00:15]} 47. R4b2 {[%clk 0:00:06]}  Ra4+ {[%clk 0:00:15]} 48. Kd3 {[%clk 0:00:06]}  Rc4 {[%clk 0:00:14]} 49. Ra1 {[%clk 0:00:06]}  Rc5 {[%clk 0:00:15]} 50. Rba2 {[%clk 0:00:06]}  Rd5+ {[%clk 0:00:15]} 51. Kc3 {[%clk 0:00:06]}  Re4 {[%clk 0:00:15]} 52. Ra6+ {[%clk 0:00:05]}  Kc5 {[%clk 0:00:15]} 53. Ra8 {[%clk 0:00:05]}  Rc4+ {[%clk 0:00:15]} 54. Kb3 {[%clk 0:00:05]}  Rd3+ {[%clk 0:00:16]} 55. Kb2 {[%clk 0:00:05]}  Rxg3 {[%clk 0:00:16]} 56. Re8 {[%clk 0:00:04]}  Rxg2+ {[%clk 0:00:16]} 57. Kb3 {[%clk 0:00:04]}  Rg3+ {[%clk 0:00:15]} 58. Kb2 {[%clk 0:00:04]}  Kb4 {[%clk 0:00:16]} 59. Re2 {[%clk 0:00:03]}  c5 {[%clk 0:00:16]} 60. Rb1 {[%clk 0:00:04]}  Rb3+ {[%clk 0:00:16]} 61. Ka2 {[%clk 0:00:04]}  Rxb1 {[%clk 0:00:17]} 62. Kxb1 {[%clk 0:00:04]}  Rc3 {[%clk 0:00:17]} 63. Ka2 {[%clk 0:00:04]}  Ra3+ {[%clk 0:00:16]} 64. Kb2 {[%clk 0:00:05]}  Rb3+ {[%clk 0:00:16]} 65. Kc2 {[%clk 0:00:05]}  c4 {[%clk 0:00:16]} 66. Re4 {[%clk 0:00:05]}  Ra3 {[%clk 0:00:16]} 67. Re7 {[%clk 0:00:05]}  Ra2+ {[%clk 0:00:16]} 68. Kb1 {[%clk 0:00:05]}  Rg2 {[%clk 0:00:16]} 69. Rf7 {[%clk 0:00:05]}  Kb3 {[%clk 0:00:16]} 70. Rf3+ {[%clk 0:00:06]}  c3 {[%clk 0:00:16]} 71. Rf1 {[%clk 0:00:05]}  Rb2+ {[%clk 0:00:16]} 72. Ka1 {[%clk 0:00:06]}  Ra2+ {[%clk 0:00:16]} 73. Kb1 {[%clk 0:00:06]}  c2+ {[%clk 0:00:17]} 74. Kc1 {[%clk 0:00:06]}  Ra1+ {[%clk 0:00:17]} 75. Kd2 {[%clk 0:00:07]}  Rxf1 {[%clk 0:00:17]} 0-1


[Site "https://www.chess.com"]

[Event "Titled Tuesday Blitz April 18 Late 2023"]
[White "Dahlgren, James Allen"]
[Black "Osmak, Yuliia"]
[WhiteFideId "22256873"]
[BlackFideId "14101602"]
[WhiteElo "2176"]
[BlackElo "2291"]
[Result "0-1"]
[Round "01"]
[TimeControl "180+2"]
[Date "2023.04.18"]
[WhiteClock "0:01:29"]
[BlackClock "0:02:07"]

1. e3 {[%clk 0:02:46]}  d5 {[%clk 0:02:58]} 2. c4 {[%clk 0:02:36]}  c6 {[%clk 0:02:57]} 3. Nc3 {[%clk 0:02:36]}  Nf6 {[%clk 0:02:57]} 4. d4 {[%clk 0:02:37]}  Bg4 {[%clk 0:02:55]} 5. Nf3 {[%clk 0:02:38]}  e6 {[%clk 0:02:54]} 6. Be2 {[%clk 0:02:38]}  Nbd7 {[%clk 0:02:53]} 7. O-O {[%clk 0:02:38]}  Bd6 {[%clk 0:02:53]} 8. h3 {[%clk 0:02:38]}  Bh5 {[%clk 0:02:53]} 9. c5 {[%clk 0:02:38]}  Bc7 {[%clk 0:02:52]} 10. b4 {[%clk 0:02:39]}  O-O {[%clk 0:02:50]} 11. b5 {[%clk 0:02:38]}  e5 {[%clk 0:02:49]} 12. a4 {[%clk 0:02:37]}  e4 {[%clk 0:02:42]} 13. Nh2 {[%clk 0:02:36]}  Bxe2 {[%clk 0:02:42]} 14. Qxe2 {[%clk 0:02:36]}  Qe7 {[%clk 0:02:35]} 15. a5 {[%clk 0:02:28]}  a6 {[%clk 0:02:32]} 16. b6 {[%clk 0:02:28]}  Bxh2+ {[%clk 0:02:30]} 17. Kxh2 {[%clk 0:02:27]}  Ne8 {[%clk 0:02:28]} 18. f4 {[%clk 0:02:22]}  exf3 {[%clk 0:02:27]} 19. gxf3 {[%clk 0:02:18]}  f5 {[%clk 0:02:26]} 20. e4 {[%clk 0:02:12]}  fxe4 {[%clk 0:02:25]} 21. fxe4 {[%clk 0:02:13]}  Rxf1 {[%clk 0:02:25]} 22. Qxf1 {[%clk 0:02:13]}  dxe4 {[%clk 0:02:24]} 23. Qc4+ {[%clk 0:02:05]}  Kh8 {[%clk 0:02:23]} 24. Bf4 {[%clk 0:02:05]}  Nef6 {[%clk 0:02:21]} 25. Re1 {[%clk 0:02:01]}  Re8 {[%clk 0:02:20]} 26. d5 {[%clk 0:01:47]}  cxd5 {[%clk 0:02:15]} 27. Nxd5 {[%clk 0:01:46]}  Nxd5 {[%clk 0:02:15]} 28. Qxd5 {[%clk 0:01:45]}  Qxc5 {[%clk 0:02:10]} 29. Rxe4 {[%clk 0:01:30]}  Qf2+ {[%clk 0:02:08]} 30. Kh1 {[%clk 0:01:29]}  Qf3+ {[%clk 0:02:07]} 0-1


[Site "https://www.chess.com"]